Cogmind - Beta 11 @@@ ROGUE MODE // 2022.04.15 @ 22:33:22 Player: Infomantis Result: Destroyed by H-71 Marshal with Heavy Mass Driver Performance ------------- Evolutions (6) 3000 Regions Visited (20) 4000 Robots Destroyed (130) 650 Value Destroyed (5528) 5528 Prototype IDs (33) 660 Alien Tech Used (0) 0 Bonus (3332) 3332 TOTAL SCORE: 17170 Bonus ------- High Alert Combat Kills 203 Follower Combat Kills 2187 Network Hubs Disabled 200 Met Warlord at Base 500 MAIN.C Attacked Warlord 500 A7 Reached Mainframe 300 Met R17 at Cetus 500 Friendly Fire -1058 Cogmind --------- Core Integrity 0/1150 Matter 300/300 Energy 100/100 System Corruption 12% Temperature Cool (0) Movement Core (50) Location -4/Factory Parts ------- > --- POWER (2) -------- (None) > --- PROPULSION (4) --- (None) > --- UTILITY (9) ------ Advanced Terrain Scan Processor Experimental Targeting Computer Improved System Guard > --- WEAPON (4) ------- (None) > --- INVENTORY (5) ---- (None) Peak State ------------ > --- POWER ------------ Neutrino Core Antimatter Reactor > --- PROPULSION ------- Heavy Treads Centrium Heavy Treads > --- UTILITY ---------- Advanced Heat Sink Experimental Cooling System Large Storage Unit Improved Sensor Array Advanced Signal Interpreter 0b10 Decoder Chip [Skirmisher] Experimental Targeting Computer Centrium Medium Armor Plating Experimental Hacking Suite > --- WEAPON ----------- Plasma Rifle Vortex Rail Heavy Autocannon > --- INVENTORY -------- Neutrino Core Improved Treads Heavy Treads Compact Wheel Centrium Medium Armor Plating Mapping Drone Bay BFG-9k Vortex Edition Advanced Datajack [Rating: 135] Favorites ----------- Power Neutrino Core Engine Light Ion Engine Power Core Neutrino Core Reactor Antimatter Reactor Propulsion Compact Wheel Treads Light Treads Leg Carbon-fiber Leg Wheel Compact Wheel Hover Unit Gravmag Array Utility Large Storage Unit Device Improved Sensor Array Storage Large Storage Unit Processor Advanced Signal Interpreter Hackware Experimental Hacking Suite Protection Centrium Medium Armor Plating Weapon Advanced KE Penetrator Energy Gun Advanced Variable Charge Gun Energy Cannon Neutron Cannon Ballistic Gun Advanced KE Penetrator Ballistic Cannon Assault Cannon Launcher Grenade Launcher Slashing Weapon Great Axe Special Melee Weapon Improved Datajack Build | -11 -10 -10 -10 -9 -8 -7 -7 -7 -6 -6 -6 -6 -6 -6 -5 -5 -5 -5 -4 -4 ------- Run | Scr Mat Min Exi Min Mat Fac Low Zio Pro Fac Ext Cet Arc Hub Fac Upp Upp War Pro Fac Slots Evolved 12 | . . . . . 4 2 . . . 2 . . . . 2 . . . . 2 Power 1 | . . . . . . . . . . . . . . . . . . . . 1 Propulsion 2 | . . . . . 1 . . . . 1 . . . . . . . . . . Utility 7 | . . . . . 2 2 . . . 1 . . . . 1 . . . . 1 Weapon 2 | . . . . . 1 . . . . . . . . . 1 . . . . . Parts Attached 218 | 8 3 . . 1 36 16 7 16 6 4 25 12 6 1 11 . . 21 1 44 Power 23 | 1 . . . . 5 3 2 . . . 1 . . . . . . 1 . 10 Engine 6 | 1 . . . . 3 1 1 . . . . . . . . . . . . . Core 12 | . . . . . 2 2 1 . . . 1 . . . . . . 1 . 5 Reactor 5 | . . . . . . . . . . . . . . . . . . . . 5 Propulsion 41 | 2 . . . 1 10 3 . 1 . 2 7 1 2 . 3 . . . . 9 Treads 18 | 2 . . . 1 5 . . . . . 2 1 2 . . . . . . 5 Leg 10 | . . . . . 3 . . 1 . 1 4 . . . . . . . . 1 Wheel 11 | . . . . . 2 3 . . . 1 1 . . . 3 . . . . 1 Hover 2 | . . . . . . . . . . . . . . . . . . . . 2 Flight . | . . . . . . . . . . . . . . . . . . . . . Utility 80 | 2 2 . . . 10 5 4 12 2 1 2 5 2 1 3 . . 14 . 15 Device 38 | 1 1 . . . 6 3 . 2 1 . 1 2 1 1 2 . . 7 . 10 Storage 7 | 1 1 . . . . . 1 4 . . . . . . . . . . . . Processor 15 | . . . . . 4 . . 5 . . . 1 . . . . . 1 . 4 Hackware 1 | . . . . . . . . . . 1 . . . . . . . . . . Protection 19 | . . . . . . 2 3 1 1 . 1 2 1 . 1 . . 6 . 1 Artifact . | . . . . . . . . . . . . . . . . . . . . . Weapon 74 | 3 1 . . . 11 5 1 3 4 1 15 6 2 . 5 . . 6 1 10 Energy Gun 34 | 2 . . . . 4 4 . 2 3 . 7 2 . . 2 . . 1 1 6 Energy Cannon 3 | . . . . . . . . . . . . 1 . . . . . . . 2 Ballistic Gun 11 | 1 . . . . 2 . . . . . . 2 2 . 2 . . 2 . . Ballistic Cannon 13 | . 1 . . . 3 . 1 . . 1 3 1 . . . . . 1 . 2 Launcher 3 | . . . . . 1 . . . . . . . . . 1 . . 1 . . Special Weapon . | . . . . . . . . . . . . . . . . . . . . . Impact Weapon . | . . . . . . . . . . . . . . . . . . . . . Slashing Weapon 2 | . . . . . 1 . . 1 . . . . . . . . . . . . Piercing Weapon . | . . . . . . . . . . . . . . . . . . . . . Special Melee Weapon 8 | . . . . . . 1 . . 1 . 5 . . . . . . 1 . . Unidentified Prototypes 24 | . . . . . 1 2 . 5 . 1 . 5 . . 2 . . 8 . . Parts Lost 68 | . . . . . 16 2 4 . . . 6 . 1 . . . . . 3 36 Power 13 | . . . . . 3 1 1 . . . . . . . . . . . . 8 Propulsion 19 | . . . . . 6 . 1 . . . 3 . 1 . . . . . 1 7 Utility 15 | . . . . . 1 1 2 . . . . . . . . . . . 1 10 Weapon 21 | . . . . . 6 . . . . . 3 . . . . . . . 1 11 Highest Loss Streak 10 | . . . . . 10 1 4 . . . 3 . 1 . . . . . 3 8 To Critical Strikes 4 | . . . . . . . . . . . 2 . 1 . . . . . . 1 Average Slot Usage (%) 89 | . 99 100 100 100 82 94 88 90 92 88 90 90 90 93 93 94 94 92 81 76 Engine 2 | . 14 14 14 14 4 4 1 . . . . . . . . . . . . . Core 4 | . . . . . 2 2 5 7 7 6 6 6 6 6 5 5 5 4 5 3 Treads 8 | . 28 28 28 28 16 . . . . . 3 10 17 20 11 5 5 5 5 6 Leg 2 | . . . . . 4 10 . 5 7 8 6 . . . . . . . . . Wheel 6 | . . . . . 2 9 12 7 7 7 7 6 . . 5 11 11 11 9 2 Device 12 | . 14 14 14 14 10 13 12 10 15 13 13 6 7 6 11 11 11 11 11 14 Storage 7 | . 14 14 14 14 9 7 8 11 7 6 6 6 6 6 5 5 5 5 5 4 Processor 13 | . . . . . 11 17 15 14 15 13 13 20 20 20 17 17 17 17 15 16 Hackware 3 | . . . . . . . . . . 5 6 6 6 6 5 5 5 5 5 4 Protection 4 | . . . . . . 2 7 7 7 6 6 6 4 6 4 5 5 4 5 2 Energy Gun 10 | . 14 14 14 14 6 10 15 18 22 18 12 11 6 6 5 5 5 6 3 6 Energy Cannon 1 | . . . . . . . . . . . . 1 6 6 5 5 5 5 3 1 Ballistic Gun 3 | . 8 . . . 5 . . . . . . 5 6 6 10 11 11 7 . . Ballistic Cannon 4 | . 4 14 14 14 6 7 7 1 . . 5 . . . . . . 1 5 3 Naked Turns . | . . . . . . . . . . . . . . . . . . . . . Heaviest Build 108 | 12 29 29 29 29 40 47 55 55 52 55 57 62 62 62 69 69 69 96 96 108 Greatest Support 150 | 40 40 40 40 40 60 44 44 28 28 56 56 80 126 126 126 32 32 32 32 150 Greatest Overweight (x) 10 | . . . . . 10 4 1 1 1 1 2 2 . . 4 2 2 2 5 5 Average Overweight (x) 1 | . . . . . . 2 . 1 1 . . 1 . . 1 2 2 1 2 1 Largest Inventory Capacity 15 | 8 15 15 15 15 15 15 15 15 15 15 15 15 15 15 15 15 15 15 15 15 Average Capacity 14 | 7 14 15 15 15 15 15 15 15 15 15 15 15 15 15 15 15 15 15 15 14 Most Carried 15 | 8 14 15 15 15 15 15 15 15 15 15 15 15 15 15 15 15 15 15 15 15 Average Carried 14 | 4 12 13 15 14 12 14 14 14 14 14 14 14 15 15 14 15 15 14 14 13 Final Capacity 15 | 8 15 15 15 15 15 15 15 15 15 15 15 15 15 15 15 15 15 15 15 5 Final Carried 15 | 8 13 15 15 15 15 15 15 15 15 15 15 15 15 15 15 15 15 15 14 . Class Distribution -------------------- 25% | Scavenger-Gunner 21% | Scavenger-Mutant 19% | Mutant 12% | Scavenger-Skirmisher 9% | Skirmisher 3% | Scavenger-Tank Dominant Class ---------------- Mutant | -10/Materials Mutant | -10/Mines Mutant | -10/Exiles Mutant | -9/Mines Skirmisher | -8/Materials Scavenger-Assassin | -7/Factory Scavenger-Skirmisher | -7/Lower Caves Skirmisher | -7/Zion Scavenger-Mutant | -6/Proximity Caves Scavenger-Mutant | -6/Factory Commander-Skirmisher | -6/Extension Commander-Gunner | -6/Cetus Scavenger-Gunner | -6/Archives Scavenger-Gunner | -6/Hub_04(d) Scavenger-Gunner | -5/Factory Scavenger-Gunner | -5/Upper Caves Scavenger-Gunner | -5/Upper Caves Scavenger-Gunner | -5/Warlord Scavenger-Mutant | -4/Proximity Caves Scavenger-Mutant | -4/Factory Resources | -11 -10 -10 -10 -9 -8 -7 -7 -7 -6 -6 -6 -6 -6 -6 -5 -5 -5 -5 -4 -4 ----------- Run | Scr Mat Min Exi Min Mat Fac Low Zio Pro Fac Ext Cet Arc Hub Fac Upp Upp War Pro Fac Matter Collected 4111 | 273 . 132 14 4 601 190 398 176 60 30 549 180 85 31 229 54 21 122 114 848 Remotely . | . . . . . . . . . . . . . . . . . . . . . Salvage Created 5855 | 104 96 17 52 148 895 373 329 . 109 294 747 52 198 307 642 20 . . 72 1400 Parts 276 | 7 4 1 3 6 47 15 10 . 5 18 40 . 12 13 22 1 . . 6 66 Haulers Intercepted . | . . . . . . . . . . . . . . . . . . . . . Recyclers Shooed 9 | . 1 . . . 1 1 . . . 1 . . . . 1 . . . . 4 Parts Field Recycled . | . . . . . . . . . . . . . . . . . . . . . Retrieved Matter . | . . . . . . . . . . . . . . . . . . . . . Parts Self-Destructed 106 | . . . . . . . 8 3 13 . . . . . . 3 . 73 6 . Prevented 10 | . . . . . . . . . 3 . . . . . . . . 7 . . Kills | -11 -10 -10 -10 -9 -8 -7 -7 -7 -6 -6 -6 -6 -6 -6 -5 -5 -5 -5 -4 -4 ------- Run | Scr Mat Min Exi Min Mat Fac Low Zio Pro Fac Ext Cet Arc Hub Fac Upp Upp War Pro Fac Combat Hostiles Destroyed 97 | . 2 2 . 2 20 3 8 . 3 4 14 1 1 . 11 1 . . 5 20 Melee 3 | . . . . . 2 . . . . . . . . . . . . . . 1 Guns 47 | . 2 1 . 1 9 2 6 . 3 3 5 1 1 . 6 1 . . . 6 Cannons 33 | . . 1 . 1 8 1 2 . . . 7 . . . 1 . . . 4 8 AOE 10 | . . . . . 1 . . . . 1 1 . . . 4 . . . 1 2 Classes Destroyed 15 | 2 1 1 . 1 5 3 . . . . . . . 1 . . . . 1 . Worker 2 | . . . . . . . . . . . . . . 1 . . . . . 1 Tunneler 3 | 2 . . . . . . . . . . . . . . . . . . . 1 Recycler 12 | 1 . . . 1 1 4 . . . . . . . 1 1 . . . . 3 Mechanic 1 | . . . . . 1 . . . . . . . . . . . . . . . Operator 7 | . . . . . 1 . . . . 1 1 . 4 . . . . . . . Watcher 4 | . . . . . . 1 . . . . 2 . . 1 . . . . . . Swarmer 18 | . . 2 . . 2 . . . 2 . 2 . . . 2 1 . . 4 3 Grunt 44 | . 2 . . 1 13 1 6 . 1 3 8 . . . 5 . . . . 4 Brawler 1 | . . . . . 1 . . . . . . . . . . . . . . . Duelist 3 | . . . . 1 1 . 1 . . . . . . . . . . . . . Sentry 12 | . . . . . 3 . 1 . . . 4 . 1 . 2 . . . . 1 Hunter 5 | . . . . . . 1 . . . . . . . . 2 . . . . 2 Programmer 11 | . . . . . . 1 . . . . . . . . . . . . . 10 Heavy 2 | . . . . . 1 . . . . 1 . . . . . . . . . . Behemoth 1 | . . . . . . . . . . . . . . . . . . . 1 . Cetus Guard 1 | . . . . . . . . . . . . 1 . . . . . . . . Enhanced Grunt 1 | . . . . . . . . . . . . . . 1 . . . . . . Thug 1 | . . . 1 . . . . . . . . . . . . . . . . . Guerrilla 1 | . . . . . . . . . . . . . . 1 . . . . . . Best Kill Streak 6 | 2 2 2 . 3 5 3 3 . 2 3 4 1 3 3 6 1 . . 4 4 Combat Bots Only 6 | . 2 2 . 2 5 2 3 . 2 3 3 1 1 . 6 1 . . 4 3 Max Kills in Single Turn 5 | 1 1 1 1 2 2 2 1 . 1 1 2 1 1 5 2 1 . . 1 2 Gunslinging . | . . . . . . . . . . . . . . . . . . . . . Exploded 2 | . . . . . 1 . . . . 1 1 . . . 1 . . . 1 2 Melee 1 | . . . . . 1 . . . . . . . . . . . . . . 1 Uniques/NPCs Destroyed . | . . . . . . . . . . . . . . . . . . . . . Combat | -11 -10 -10 -10 -9 -8 -7 -7 -7 -6 -6 -6 -6 -6 -6 -5 -5 -5 -5 -4 -4 -------- Run | Scr Mat Min Exi Min Mat Fac Low Zio Pro Fac Ext Cet Arc Hub Fac Upp Upp War Pro Fac Damage Taken 14678 | . 126 97 . 24 2611 310 779 . 357 374 1521 168 120 100 622 122 . 169 921 6257 Core 2380 | . 36 6 . . 445 60 77 . 83 80 260 46 . 50 39 17 . 16 . 1165 Absorbed by Shields 283 | . . . . . . . . . . . 164 119 . . . . . . . . Redirected to Shielding 9 | . . . . . . . 9 . . . . . . . . . . . . . Regen/Repaired (Parts) 743 | . . . . . . . . 717 . . . . . . 26 . . . . . Core Remaining (%) 68 | 100 . . . 83 19 . . . 68 . . . . 48 . . . . 92 . Volleys Fired 378 | 14 18 9 . 6 65 14 22 . 10 17 45 10 10 1 18 2 . 5 22 90 Largest 4 | 2 2 2 . 2 3 3 3 . 3 3 3 3 3 2 4 4 . 2 2 4 Hottest 290 | 70 85 85 . 85 119 199 199 . 205 200 212 206 205 275 240 240 . 135 135 290 Shots Fired 835 | 28 35 18 1 12 151 39 61 . 20 40 115 24 23 2 64 8 . 6 33 155 Gun 580 | 28 32 9 . 6 100 25 39 . 20 38 77 20 16 2 48 6 . 3 12 99 Cannon 250 | . 3 9 1 6 49 14 22 . . 2 38 4 7 . 13 2 . 3 21 56 Launcher 5 | . . . . . 2 . . . . . . . . . 3 . . . . . Special . | . . . . . . . . . . . . . . . . . . . . . Kinetic 337 | 14 17 9 1 6 101 14 22 . . 2 38 10 10 1 31 4 . 3 11 43 Thermal 398 | 14 18 9 . 6 48 25 39 . 10 24 57 14 13 1 30 4 . . 10 76 Explosive 5 | . . . . . 2 . . . . . . . . . 3 . . . . . Electromagnetic 72 | . . . . . . . . . 10 14 20 . . . . . . . . 28 Entropic 23 | . . . . . . . . . . . . . . . . . . 3 12 8 Robot Hit Streak 18 | 6 9 12 1 3 17 7 12 . 7 10 10 7 12 . 13 2 . 2 16 18 Robot Miss Streak 7 | 3 2 2 . 2 3 7 7 . 2 4 6 3 1 . 2 2 . 4 2 4 Penetration Max 1 | . . . . . . . . . . . . . 1 . . . . . . . Secondary Targets 3 | . 1 . . . 1 . . . . . . . . . . . . . . 1 Max Gunslinging Chain 1 | . 1 . . . 1 . . . . . . . . . . . . . . 1 Shots Hit Robots 627 | 17 25 13 1 7 114 30 51 . 19 31 113 17 18 . 36 3 . 3 27 102 Core Hits 347 | 6 9 3 1 6 43 21 42 . 14 27 67 8 12 5 29 1 . 1 7 45 Critical Kills 4 | . . . . . . . . . . . . . . . 1 . . . . 3 Critical Parts Destroyed 10 | . . . . . . . . . . . 1 2 . . 2 . . . 1 4 Critical Strikes 44 | . 3 2 . 1 12 . . . . 1 5 3 1 . 3 . . . 2 11 Burn 13 | . 3 2 . . 6 . . . . 1 1 . . . . . . . . . Destroy 14 | . . . . . . . . . . . 1 3 1 . 3 . . . . 6 Blast 12 | . . . . 1 3 . . . . . 3 . . . . . . . 1 4 Sever 3 | . . . . . 3 . . . . . . . . . . . . . . . Detonate 2 | . . . . . . . . . . . . . . . . . . . 1 1 Melee Attacks 41 | . . . . . 9 . . . 1 . 30 . . . . . . 1 . . Impact . | . . . . . . . . . . . . . . . . . . . . . Slashing 9 | . . . . . 9 . . . . . . . . . . . . . . . Piercing . | . . . . . . . . . . . . . . . . . . . . . Sneak Attacks 33 | . . . . . 1 . . . 1 . 30 . . . . . . 1 . . Combat Hostiles 1 | . . . . . . . . . 1 . . . . . . . . . . . Follow-up Attacks . | . . . . . . . . . . . . . . . . . . . . . Damage Inflicted 16033 | 172 274 187 21 125 2371 592 1048 . 369 662 1906 495 600 435 1477 82 . 188 1644 3385 Guns 8732 | 172 257 103 . 37 1190 426 711 . 369 598 1192 402 374 . 805 27 . 76 373 1620 Cannons 5412 | . 17 84 21 88 818 166 337 . . 28 670 93 226 . 256 37 . 112 1123 1336 Explosions 1422 | . . . . . 37 . . . . 36 44 . . 435 416 . . . 148 306 Melee 323 | . . . . . 323 . . . . . . . . . . . . . . . Ramming 144 | . . . . . 3 . . . . . . . . . . 18 . . . 123 Kinetic 6009 | 61 114 84 21 88 1487 166 337 . . 28 670 228 219 . 382 27 . 112 866 1119 Thermal 7094 | 111 160 103 . 37 521 426 711 . 203 417 957 267 381 . 729 37 . . 405 1629 Explosive 360 | . . . . . 37 . . . . . . . . . 323 . . . . . Electromagnetic 1525 | . . . . . . . . . 166 217 279 . . 435 43 . . . . 385 Impact . | . . . . . . . . . . . . . . . . . . . . . Slashing 323 | . . . . . 323 . . . . . . . . . . . . . . . Piercing . | . . . . . . . . . . . . . . . . . . . . . Entropic 578 | . . . . . . . . . . . . . . . . . . 76 373 129 Highest Corruption 17 | . 3 3 3 3 . 1 2 2 . 2 4 4 4 1 1 1 1 1 . 17 Average Corruption 3 | . 2 3 3 3 . 1 1 2 . 2 3 4 3 1 1 1 1 1 . 9 Corruption Purged 4 | . . . . . . . . . . . . . 4 . . . . . . . Corruption Blocked . | . . . . . . . . . . . . . . . . . . . . . Effects 112 | . 5 9 5 5 . 2 7 2 . 2 24 4 1 . 1 2 6 . . 37 Message Errors 28 | . 3 4 . 1 . . 3 . . . 8 2 . . . 1 . . . 6 Matter Fused 30 | . . 3 1 . . 1 2 2 . . 10 . 1 . 1 . 2 . . 7 Heat Flow Errors 13 | . . . 3 1 . . 1 . . 1 . . . . . . . . . 7 Energy Discharges 9 | . . . . 1 . . . . . . 1 1 . . . . 1 . . 5 Parts Rejected 3 | . 2 . . . . . . . . . . . . . . . . . . 1 Data Loss (minor) 15 | . . 2 . 1 . 1 1 . . . 2 . . . . 1 1 . . 6 Data Loss (major) 5 | . . . . . . . . . . 1 1 1 . . . . 1 . . 1 Misfires 3 | . . . 1 . . . . . . . 1 . . . . . . . . 1 Alerts 3 | . . . . 1 . . . . . . . . . . . . 1 . . 1 Misdirections 1 | . . . . . . . . . . . . . . . . . . . . 1 Weapon Failures 2 | . . . . . . . . . . . 1 . . . . . . . . 1 Overload Shots 1 | . . . . . . . . . . . . . . 1 . . . . . . Overflow Damage 194 | . . . . . 23 6 5 . . . . . . 11 . 12 . 7 38 92 Projectiles 104 | . . . . . . 6 5 . . . . . . . . 12 . 7 38 36 Explosions 63 | . . . . . . . . . . . . . . 11 . . . . . 52 Melee 27 | . . . . . 23 . . . . . . . . . . . . . . 4 Knockbacks 29 | . . 1 . . 6 1 7 . . 1 . 2 . . . . . 1 . 10 Impact 3 | . . . . . . . . . . . . . . . . . . . . 3 Kinetic 24 | . . 1 . . 5 1 6 . . 1 . 2 . . . . . 1 . 7 Secondary 2 | . . . . . 1 . 1 . . . . . . . . . . . . . Self-Inflicted Damage 442 | . . . . . . . . . . 14 62 . . 101 12 . . . . 253 Shots 7 | . . . . . . . . . . 1 1 . . 1 1 . . . . 3 Rammed 24 | . . . . . 1 . . . . . . . . . . 1 . . . 22 Targets Rammed 25 | . . . . . 1 . . . . . . . . . . 1 . . . 23 Kicked . | . . . . . . . . . . . . . . . . . . . . . Crushed 1 | . . . . . . . . . . . . . . . . . . . . 1 Highest Temperature 345 | 102 173 150 263 208 178 259 282 . 273 205 263 68 86 192 292 93 . . . 345 Average Temperature 83 | 38 56 58 115 88 43 102 127 . 87 92 64 36 42 128 91 57 . . . 122 Received Heat Transfer 3057 | . 72 39 . 12 1017 45 249 . 183 57 385 8 . . 72 . . 30 45 843 Effects 9 | . . . . . . . . . . . . . . . . . . . . 9 Shutdowns 1 | . . . . . . . . . . . . . . . . . . . . 1 Interference 8 | . . . . . . . . . . . . . . . . . . . . 8 Siege Activations . | . . . . . . . . . . . . . . . . . . . . . Robots Corrupted 1 | . . . . . . . . . . . . . . . . . . . . 1 Combat Hostiles 1 | . . . . . . . . . . . . . . . . . . . . 1 Parts Fried 3 | . . . . . . . . . . . . . . 1 . . . . . 2 Impact Corruptions 1 | . . . . . . . . . . . . . . . . . . . . 1 Robots Melted 3 | . . . . . . . . . . . 1 . . . . . . . . 2 Combat Hostiles 3 | . . . . . . . . . . . 1 . . . . . . . . 2 Parts Melted 12 | . . 2 . . 2 . 1 . . . 3 . . . 1 . . . . 3 Heat Transferred 11400 | 333 703 444 . 111 1739 720 1010 . 375 640 1723 477 185 . 605 . . . 150 2185 Parts Sabotaged . | . . . . . . . . . . . . . . . . . . . . . Parts Stolen . | . . . . . . . . . . . . . . . . . . . . . Parts Stripped . | . . . . . . . . . . . . . . . . . . . . . Power Chain Reactions 5 | . . . . . . . . . . 1 1 . . . 2 . . . 1 . Missiles Intercepted . | . . . . . . . . . . . . . . . . . . . . . Alert | -11 -10 -10 -10 -9 -8 -7 -7 -7 -6 -6 -6 -6 -6 -6 -5 -5 -5 -5 -4 -4 ------- Run | Scr Mat Min Exi Min Mat Fac Low Zio Pro Fac Ext Cet Arc Hub Fac Upp Upp War Pro Fac Peak Influence 869 | 15 133 132 . 79 489 211 . . . 227 693 869 585 494 585 . . . . 332 Initial 347 | . 9 51 . . 30 131 . . . 41 110 324 347 204 241 . . . . 18 Average 230 | 4 60 68 . 18 265 118 . . . 116 351 593 548 246 465 . . . . 130 Maximum Alert Level 3 | . . . . . 2 1 . . . 1 2 3 2 2 2 . . . . 1 Low Security (%) 51 | 100 100 100 . 100 29 98 . . . 84 8 . . 2 . . . . . 71 Level 1 28 | . . . . . 54 1 . . . 15 65 8 6 96 14 . . . . 28 Level 2 18 | . . . . . 15 . . . . . 25 70 93 1 85 . . . . . Level 3 1 | . . . . . . . . . . . . 21 . . . . . . . . Level 4 . | . . . . . . . . . . . . . . . . . . . . . Level 5 . | . . . . . . . . . . . . . . . . . . . . . High Security . | . . . . . . . . . . . . . . . . . . . . . Max Security . | . . . . . . . . . . . . . . . . . . . . . Squads Dispatched 33 | . 1 1 . . 6 1 . . . 5 2 . . 2 5 . . . . 10 Investigation 8 | . . . . . 2 . . . . . 2 . . 1 2 . . . . 1 Extermination 6 | . . . . . . 1 . . . . . . . . . . . . . 5 Reinforcement 12 | . 1 . . . 2 . . . . 5 . . . . . . . . . 4 Assault 1 | . . 1 . . . . . . . . . . . . . . . . . . Garrison 6 | . . . . . 2 . . . . . . . . 1 3 . . . . . Intercept . | . . . . . . . . . . . . . . . . . . . . . Searches Triggered . | . . . . . . . . . . . . . . . . . . . . . Construction Impeded . | . . . . . . . . . . . . . . . . . . . . . Haulers Reinforced . | . . . . . . . . . . . . . . . . . . . . . Active Scanning Responses . | . . . . . . . . . . . . . . . . . . . . . Cargo Convoy Interrupts 1 | . . . . . . . . . . . . . . . . . . . . 1 Stealth | -11 -10 -10 -10 -9 -8 -7 -7 -7 -6 -6 -6 -6 -6 -6 -5 -5 -5 -5 -4 -4 --------- Run | Scr Mat Min Exi Min Mat Fac Low Zio Pro Fac Ext Cet Arc Hub Fac Upp Upp War Pro Fac Distress Signals 13 | . 1 . . . 4 1 . . . . 1 2 . . . . . . . 4 Communications Jammed . | . . . . . . . . . . . . . . . . . . . . . Distress Signals . | . . . . . . . . . . . . . . . . . . . . . Times Spotted 250 | . 9 8 . 3 45 6 9 . 12 11 34 13 8 . 11 2 . 11 5 63 Peak Tracking Total 17 | . 3 4 . 3 7 3 3 . 4 3 6 5 1 . 6 1 . 5 4 17 Tactical Retreats 19 | . 1 . . . 5 . . . 2 1 3 . . . . . . 1 . 6 Traps | -11 -10 -10 -10 -9 -8 -7 -7 -7 -6 -6 -6 -6 -6 -6 -5 -5 -5 -5 -4 -4 ------- Run | Scr Mat Min Exi Min Mat Fac Low Zio Pro Fac Ext Cet Arc Hub Fac Upp Upp War Pro Fac Traps Triggered 10 | . 2 . . . 1 1 1 . . 1 4 . . . . . . . . . Indirectly . | . . . . . . . . . . . . . . . . . . . . . Trap Hack Attempts 48 | . . . . . . 32 . . . . 16 . . . . . . . . . Triggered . | . . . . . . . . . . . . . . . . . . . . . Disarmed 4 | . . . . . . 1 . . . . 3 . . . . . . . . . Reprogrammed 2 | . . . . . . 2 . . . . . . . . . . . . . . Reused . | . . . . . . . . . . . . . . . . . . . . . Traps Extracted 2 | . . . . . . 2 . . . . . . . . . . . . . . Installed . | . . . . . . . . . . . . . . . . . . . . . Triggered 11 | . . . . . . . . . . . . . . . . . . 11 . . Most Traps Carried 2 | . . . . . . 2 2 2 2 2 2 2 2 2 2 . . . . . Machines | -11 -10 -10 -10 -9 -8 -7 -7 -7 -6 -6 -6 -6 -6 -6 -5 -5 -5 -5 -4 -4 ---------- Run | Scr Mat Min Exi Min Mat Fac Low Zio Pro Fac Ext Cet Arc Hub Fac Upp Upp War Pro Fac Machines Disabled 28 | . . . . . 1 . . . . 1 1 3 2 8 3 . . 2 . 7 Max in Single Turn 8 | . . . . . 1 . . . . 1 1 . . 8 1 . . 2 . 4 Garrison Access 4 | . . . . . 1 . . . . 1 . . . . 1 . . . . 1 Network Hub 1 | . . . . . . . . . . . . . . 1 . . . . . . Machines Sabotaged . | . . . . . . . . . . . . . . . . . . . . . Garrisons Compromised . | . . . . . . . . . . . . . . . . . . . . . Overloaded Fab Kills . | . . . . . . . . . . . . . . . . . . . . . Hacking | -11 -10 -10 -10 -9 -8 -7 -7 -7 -6 -6 -6 -6 -6 -6 -5 -5 -5 -5 -4 -4 --------- Run | Scr Mat Min Exi Min Mat Fac Low Zio Pro Fac Ext Cet Arc Hub Fac Upp Upp War Pro Fac Machines Accessed 58 | . 2 . 4 1 7 3 . . . 4 7 1 . 1 4 . 2 11 1 10 Terminals 27 | . 2 . . . 5 1 . . . 2 7 1 . . 2 . . . 1 6 Fabricators 5 | . . . . . . 1 . . . 1 . . . . . . . . . 3 Repair Stations 1 | . . . . . . . . . . . . . . . 1 . . . . . Recycling Units 1 | . . . . . 1 . . . . . . . . . . . . . . . Scanalyzers 1 | . . . . . . 1 . . . . . . . . . . . . . . Garrison Access 5 | . . . . . 1 . . . . 1 . . . 1 1 . . . . 1 Total Hacks 135 | . 5 . 4 1 15 9 . . . 8 13 2 . 2 16 . 3 27 2 28 Successful 82 | . 2 . 4 1 6 4 . . . 5 4 1 . . 9 . 3 27 2 14 Failed 53 | . 3 . . . 9 5 . . . 3 9 1 . 2 7 . . . . 14 Catastrophic 9 | . . . . . 4 . . . . 1 . . . . 1 . . . . 3 Database Lockouts . | . . . . . . . . . . . . . . . . . . . . . Manual 42 | . 3 . . . 13 2 . . . 2 2 1 . . 9 . . . . 10 Terminals 70 | . 5 . . . 11 3 . . . 4 13 2 . . 11 . . . 2 19 Fabricators 11 | . . . . . . 2 . . . 3 . . . . . . . . . 6 Repair Stations 3 | . . . . . . . . . . . . . . . 3 . . . . . Recycling Units 2 | . . . . . 2 . . . . . . . . . . . . . . . Scanalyzers 4 | . . . . . . 4 . . . . . . . . . . . . . . Garrison Access 10 | . . . . . 2 . . . . 1 . . . 2 2 . . . . 3 Terminal Hacks 61 | . 2 . 4 1 2 1 . . . 3 4 1 . . 5 . 3 27 2 6 Record 34 | . . . 4 . . . . . . . . . . . . . 2 25 2 1 Robot Analysis 2 | . 1 . . . . . . . . . . . . . 1 . . . . . Prototype ID Bank 3 | . 1 . . . . . . . . . . . . . 1 . . . . 1 Open Door 9 | . . . . 1 . . . . . . 4 1 . . . . 1 2 . . Branch Access Points 2 | . . . . . . . . . . . . . . . 1 . . . . 1 Emergency Access Points 1 | . . . . . . . . . . 1 . . . . . . . . . . Terminal Index 2 | . . . . . . 1 . . . . . . . . 1 . . . . . Repair Station Index 1 | . . . . . . . . . . . . . . . . . . . . 1 Unreport Threat 1 | . . . . . . . . . . . . . . . . . . . . 1 Locate Traps 1 | . . . . . . . . . . 1 . . . . . . . . . . Maintenance Status 1 | . . . . . 1 . . . . . . . . . . . . . . . Patrol Status 1 | . . . . . . . . . . . . . . . 1 . . . . . Reinforcement Status 1 | . . . . . . . . . . 1 . . . . . . . . . . Zone Layout 2 | . . . . . 1 . . . . . . . . . . . . . . 1 Fabricator Hacks 4 | . . . . . . 1 . . . . . . . . . . . . . 3 Network Status 4 | . . . . . . 1 . . . . . . . . . . . . . 3 Repair Station Hacks 2 | . . . . . . . . . . . . . . . 2 . . . . . Scan Component 1 | . . . . . . . . . . . . . . . 1 . . . . . Repair 1 | . . . . . . . . . . . . . . . 1 . . . . . Recycling Unit Hacks . | . . . . . . . . . . . . . . . . . . . . . Scanalyzer . | . . . . . . . . . . . . . . . . . . . . . Garrison Access Hacks 4 | . . . . . 1 . . . . 1 . . . . 1 . . . . 1 Seal Access 4 | . . . . . 1 . . . . 1 . . . . 1 . . . . 1 Unauthorized Hacks 11 | . . . . . 3 2 . . . 1 . . . . 1 . . . . 4 Terminals 6 | . . . . . 1 1 . . . 1 . . . . 1 . . . . 2 Track 1 | . . . . . 1 . . . . . . . . . . . . . . . Assimilate 1 | . . . . . . . . . . 1 . . . . . . . . . . Botnet 4 | . . . . . . 1 . . . . . . . . 1 . . . . 2 Fabricators 3 | . . . . . . 1 . . . . . . . . . . . . . 2 Report 2 | . . . . . . 1 . . . . . . . . . . . . . 1 Liberate 1 | . . . . . . . . . . . . . . . . . . . . 1 Repair Stations . | . . . . . . . . . . . . . . . . . . . . . Recycling Units 2 | . . . . . 2 . . . . . . . . . . . . . . . Recyclers 1 | . . . . . 1 . . . . . . . . . . . . . . . Tunnel 1 | . . . . . 1 . . . . . . . . . . . . . . . Scanalyzers . | . . . . . . . . . . . . . . . . . . . . . Garrison Access . | . . . . . . . . . . . . . . . . . . . . . Data Cores Recovered . | . . . . . . . . . . . . . . . . . . . . . Used . | . . . . . . . . . . . . . . . . . . . . . Hacking Detections 27 | . 2 . . . 5 2 . . . 2 5 . . 1 2 . . . 1 7 Full Trace Events 5 | . . . . . . . . . . . 1 . . 1 2 . . . . 1 Feedback Events 2 | . . . . . . . . . . . . . . . 1 . . . . 1 Corruption 2 | . . . . . . . . . . . . . . . 1 . . . . 1 Feedback Blocked . | . . . . . . . . . . . . . . . . . . . . . Robot Schematics Acquired . | . . . . . . . . . . . . . . . . . . . . . Robots Built . | . . . . . . . . . . . . . . . . . . . . . Authchips . | . . . . . . . . . . . . . . . . . . . . . Time . | . . . . . . . . . . . . . . . . . . . . . Total Robot Build Rating . | . . . . . . . . . . . . . . . . . . . . . Part Schematics Acquired . | . . . . . . . . . . . . . . . . . . . . . Parts Built . | . . . . . . . . . . . . . . . . . . . . . Authchips . | . . . . . . . . . . . . . . . . . . . . . Time . | . . . . . . . . . . . . . . . . . . . . . Total Part Build Rating . | . . . . . . . . . . . . . . . . . . . . . Parts Repaired 1 | . . . . . . . . . . . . . . . 1 . . . . . Time 13 | . . . . . . . . . . . . . . . 13 . . . . . Parts Recycled . | . . . . . . . . . . . . . . . . . . . . . Recycled Matter . | . . . . . . . . . . . . . . . . . . . . . Retrieved Matter . | . . . . . . . . . . . . . . . . . . . . . Retrieved Components . | . . . . . . . . . . . . . . . . . . . . . Parts Scanalyzed . | . . . . . . . . . . . . . . . . . . . . . Part Schematics Acquired . | . . . . . . . . . . . . . . . . . . . . . Parts Damaged . | . . . . . . . . . . . . . . . . . . . . . Bothacking | -11 -10 -10 -10 -9 -8 -7 -7 -7 -6 -6 -6 -6 -6 -6 -5 -5 -5 -5 -4 -4 ------------ Run | Scr Mat Min Exi Min Mat Fac Low Zio Pro Fac Ext Cet Arc Hub Fac Upp Upp War Pro Fac Used RIF Installer . | . . . . . . . . . . . . . . . . . . . . . Robots Hacked 2 | . . . . . . . . . . . 1 . . . . . . 1 . . Non-combat 2 | . . . . . . . . . . . 1 . . . . . . 1 . . Combat . | . . . . . . . . . . . . . . . . . . . . . Robot Hacks Applied 2 | . . . . . . . . . . . 1 . . . . . . 1 . . parse_system 1 | . . . . . . . . . . . . . . . . . . 1 . . no_distress 1 | . . . . . . . . . . . 1 . . . . . . . . . Relay Couplers Released 4 | . . . . . . 4 . . . . . . . . . . . . . . Programmers 4 | . . . . . . 4 . . . . . . . . . . . . . . Fabnet Peak Effective % . | . . . . . . . . . . . . . . . . . . . . . Robots Rewired 15 | . . . . . . . . . 1 . 14 . . . . . . . . . Allies Hacked . | . . . . . . . . . . . . . . . . . . . . . Hacks Repelled . | . . . . . . . . . . . . . . . . . . . . . Allies | -11 -10 -10 -10 -9 -8 -7 -7 -7 -6 -6 -6 -6 -6 -6 -5 -5 -5 -5 -4 -4 -------- Run | Scr Mat Min Exi Min Mat Fac Low Zio Pro Fac Ext Cet Arc Hub Fac Upp Upp War Pro Fac Total Allies 35 | . . 4 . . . . . 4 1 . 20 3 . . . . . . . 3 Largest Group 12 | . . 4 2 1 1 . . 4 4 . 12 11 7 6 1 . . . . 3 Highest-Rated Group 584 | . . 71 47 16 16 . . 115 115 . 493 584 460 319 96 . . . . 141 Highest-Rated Ally 159 | . . 31 31 16 16 . . 39 39 . 159 136 136 96 96 . . . . 47 Total Orders 3 | . . . . 2 1 . . . . . . . . . . . . . . . STAY 1 | . . . . 1 . . . . . . . . . . . . . . . . FOLLOW 1 | . . . . 1 . . . . . . . . . . . . . . . . RETURN 1 | . . . . . 1 . . . . . . . . . . . . . . . Ally Attacks 386 | . . 24 . 7 25 . . . 44 . 126 99 22 12 2 . . . . 25 Total Damage 7658 | . . 316 . 89 160 . . . 470 . 2619 2127 618 471 . . . . . 788 Kills 63 | . . 6 . 1 2 . . . 6 . 21 16 3 4 . . . . . 4 Allies Corrupted . | . . . . . . . . . . . . . . . . . . . . . Allies Melted . | . . . . . . . . . . . . . . . . . . . . . Intel | -11 -10 -10 -10 -9 -8 -7 -7 -7 -6 -6 -6 -6 -6 -6 -5 -5 -5 -5 -4 -4 ------- Run | Scr Mat Min Exi Min Mat Fac Low Zio Pro Fac Ext Cet Arc Hub Fac Upp Upp War Pro Fac Robot Analysis Total 2 | . 1 . . . . . . . . . . . . . 1 . . . . . Derelict Logs Recovered 9 | . . 1 . . . . 1 2 2 . . . . . . 1 2 . . . Drone Launches 13 | . . . . . 13 . . . . . . . . . . . . . . . Drone Recoveries 2 | . . . . . 2 . . . . . . . . . . . . . . . Decoded 0b10 Intel 6 | . . . . . . . . . . . . . . . . . . . . 6 Patrols 3 | . . . . . . . . . . . . . . . . . . . . 3 Reinforcements 2 | . . . . . . . . . . . . . . . . . . . . 2 Guards 1 | . . . . . . . . . . . . . . . . . . . . 1 Exploration | -11 -10 -10 -10 -9 -8 -7 -7 -7 -6 -6 -6 -6 -6 -6 -5 -5 -5 -5 -4 -4 ------------- Run | Scr Mat Min Exi Min Mat Fac Low Zio Pro Fac Ext Cet Arc Hub Fac Upp Upp War Pro Fac Turns Passed 13000 | 169 361 608 408 222 855 567 510 1292 484 345 1232 398 251 203 476 571 578 1153 628 1689 Spaces Moved 8142 | 73 186 354 253 125 322 351 346 1086 351 225 808 243 83 119 261 395 443 815 382 921 Core 46 | 5 . . . . 3 . . . . . . . . . . . . . . 38 Treads 1949 | 68 186 354 253 125 207 . . . . . . 99 83 119 122 . . . . 333 Legs 75 | . . . . . 75 . . . . . . . . . . . . . . . Wheels 5887 | . . . . . 37 351 346 1086 351 225 808 144 . . 139 395 443 815 382 365 Hover 185 | . . . . . . . . . . . . . . . . . . . . 185 Flight . | . . . . . . . . . . . . . . . . . . . . . Fastest Speed 50 | 50 160 160 160 160 110 100 100 115 115 100 100 115 160 160 115 130 130 115 130 50 Average Speed 131 | 152 160 160 160 160 172 121 114 115 115 112 113 140 160 160 144 130 130 129 138 134 Slowest Speed 550 | 160 160 160 160 160 550 140 115 115 115 115 130 160 160 160 160 130 130 130 175 240 Overloaded Moves . | . . . . . . . . . . . . . . . . . . . . . Propulsion Burnouts . | . . . . . . . . . . . . . . . . . . . . . Robots Hopped . | . . . . . . . . . . . . . . . . . . . . . Cave-ins Triggered 1 | . . . . . . . . . . . . . . . . . . . . 1 Exploration Rate (%) 49 | 5 40 76 63 24 51 10 58 85 50 10 86 67 78 14 7 59 73 93 62 29 Regions Visited 20 Branch Regions 14 Pre-discovered Areas 4 | . . . . . 1 . . . 1 . . . . . . . . 2 . . Known Exits Taken 13 | . . . . . 1 . . 1 1 1 1 1 1 1 1 1 1 1 1 . Unknown Exits Taken 7 | 1 1 1 1 1 . 1 1 . . . . . . . . . . . . . Scrap Searched 15 | . . 1 . . . . 4 3 2 . . . . . . . 3 . 2 . Spaces Dug 6 | . . . . . . . . . . . . . . . . . . . . 6 Terrain Destroyed 307 | . . . . . 12 1 1 . . 3 18 2 2 142 26 3 . 5 15 77 Melee . | . . . . . . . . . . . . . . . . . . . . . Projectile 84 | . . . . . 6 1 1 . . . 9 2 2 1 17 3 . 5 14 23 AOE 223 | . . . . . 6 . . . . 3 9 . . 141 9 . . . 1 54 Terrain Rammed . | . . . . . . . . . . . . . . . . . . . . . Walls Destroyed . | . . . . . . . . . . . . . . . . . . . . . Machines Disabled . | . . . . . . . . . . . . . . . . . . . . . Actions | -11 -10 -10 -10 -9 -8 -7 -7 -7 -6 -6 -6 -6 -6 -6 -5 -5 -5 -5 -4 -4 --------- Run | Scr Mat Min Exi Min Mat Fac Low Zio Pro Fac Ext Cet Arc Hub Fac Upp Upp War Pro Fac Total 9690 | 102 217 378 259 136 500 460 407 1130 413 284 1028 285 182 129 316 447 445 907 448 1217 Wait 592 | . 4 14 1 . 37 30 21 7 40 29 65 3 76 9 15 50 3 34 42 112 Move 8122 | 72 185 353 252 124 321 350 345 1085 350 224 807 242 82 118 260 395 442 814 381 920 Hop . | . . . . . . . . . . . . . . . . . . . . . Pick Up 95 | 7 6 2 3 2 14 4 6 7 1 5 11 3 3 . 3 . . 4 1 13 Fast Attach 110 | 8 1 . . . 13 9 3 7 2 1 6 7 4 . 7 . . 17 . 25 Attach 47 | . 1 . . . 14 3 1 3 . 3 4 . . . 2 . . . 1 15 Detach 16 | 1 . . . . 5 4 . 1 . . . . . . 1 . . 1 . 3 Swap 61 | . 1 . . 1 9 4 3 6 4 . 15 5 2 1 2 . . 4 . 4 Drop 138 | . 1 . 3 3 12 10 6 14 5 5 13 15 5 . 8 . . 27 1 10 Fire 378 | 14 18 9 . 6 65 14 22 . 10 17 45 10 10 1 18 2 . 5 22 90 Melee 41 | . . . . . 9 . . . 1 . 30 . . . . . . 1 . . Ram 4 | . . . . . . . . . . . . . . . . . . . . 4 Kick . | . . . . . . . . . . . . . . . . . . . . . Crush 21 | . . . . . 1 . . . . . . . . . . . . . . 20 Escape Stasis 17 | . . . . . . . . . . . 16 . . . . . . . . 1 Rewire . | . . . . . . . . . . . . . . . . . . . . . Trap 48 | . . . . . . 32 . . . . 16 . . . . . . . . . Miscellaneous . | . . . . . . . . . . . . . . . . . . . . . Route ------- -11/Scrapyard -10/Materials (discovered 2 exits: [*Mat] / [*Min]) -10/Mines (discovered 3 exits: [*Mat x2] / *Exi) -10/Exiles (discovered 2 exits: *Min x2) -9/Mines -8/Materials (discovered 2 exits: *Fac x2) -7/Factory -7/Lower Caves -7/Zion -6/Proximity Caves -6/Factory (discovered 3 exits: Low / *Ext x2) -6/Extension (discovered 2 exits: *Fac / *Cet) -6/Cetus (discovered 2 exits: *Fac / *Arc) -6/Archives (discovered 2 exits: *Fac / *Hub) -6/Hub_04(d) -5/Factory (discovered 2 exits: *Upp x2) -5/Upper Caves -5/Upper Caves -5/Warlord -4/Proximity Caves -4/Factory (discovered 4 exits: *Res x2 / Upp x2) History --------- Turn | Location | Event 4 | -11/Scrapyard | Discovered new exit (range 15) 170 | -11/Scrapyard | Entered Materials 301 | -10/Materials | Build established: Mutant 400 | -10/Materials | Discovered new exit (range 15) 488 | -10/Materials | Discovered new exit (range 11) 531 | -10/Materials | Entered Mines 765 | -10/Mines | Assisted by bots powering up and referring to "LRC-V3" 804 | -10/Mines | Discovered new exit (range 7) 907 | -10/Mines | Received a Rocket Launcher from a helpful Derelict 923 | -10/Mines | Learned location of 1 exit from Materials 930 | -10/Mines | Discovered new exit (range 11) 931 | -10/Mines | Met a Derelict testing a Signal Generator 1131 | -10/Mines | Deemed a non-threat by the Exiles lab entrance 1131 | -10/Mines | Discovered new exit (range 5) 1139 | -10/Mines | Entered Exiles 1139 | -10/Exiles | Found Exiles lab abandoned 1139 | -10/Exiles | Accompanied by 2 allies 1160 | -10/Exiles | Discovered new exit (range 15) 1530 | -10/Exiles | Discovered new exit (range 14) 1547 | -10/Exiles | Entered Mines 1547 | -9/Mines | Accompanied by 1 ally 1592 | -9/Mines | Discovered new exit (range 7) 1623 | -9/Mines | A weapon hastily lodged in a ceiling crevice suddenly fell to the ground 1688 | -9/Mines | Found the Drone Emporium 1697 | -9/Mines | Found Prototype Device 1769 | -9/Mines | Entered Materials 1769 | -8/Materials | Accompanied by 1 ally 1769 | -8/Materials | Evolved 4 slots: Propulsion x1, Utility x2, Weapon x1 1770 | -8/Materials | Identified exit to Factory 1770 | -8/Materials | Identified Bomb Drone Bay 2004 | -8/Materials | Garrison activated, responded to threat 2198 | -8/Materials | Build established: Skirmisher 2285 | -8/Materials | Lost 5 parts (1p2n2w) 2335 | -8/Materials | Core integrity fell below 50% 2377 | -8/Materials | Lost 10 parts (2p4n1u3w) 2522 | -8/Materials | Core integrity fell below 20% 2531 | -8/Materials | Discovered exit to Factory (range 18) 2624 | -8/Materials | Entered Factory 2624 | -7/Factory | Evolved 2 slots: Utility x2 2898 | -7/Factory | Build established: Scavenger-Assassin 3144 | -7/Factory | Discovered new exit (range 15) 3191 | -7/Factory | Entered Lower Caves 3217 | -7/Lower Caves | Build established: Scavenger-Skirmisher 3415 | -7/Lower Caves | Learned Factory stockpile data 3432 | -7/Lower Caves | Encountered a Warlord checkpoint 3517 | -7/Lower Caves | Attracted the attention of an 0b10 checkpoint 3571 | -7/Lower Caves | Lost 4 parts (1p1n2u) 3655 | -7/Lower Caves | A Derelict revealed a hidden shortcut to a safe place 3701 | -7/Lower Caves | Entered Zion 3806 | -7/Zion | Acquired unknown access codes intercepted by a Zionite 3816 | -7/Zion | Discovered new exit (range 14) 3828 | -7/Zion | Gained Derelict followers 3841 | -7/Zion | Build established: Scavenger-Tank 3911 | -7/Zion | System corruption cleaned by Quarantine Array 4012 | -7/Zion | Visited the Megawrench Repair Shop 4016 | -7/Zion | Megawrench repaired 11 parts 4145 | -7/Zion | Given the Hacking Drone Bay 4145 | -7/Zion | Found Prototype Device 4189 | -7/Zion | Learned Factory garrison access intel 4330 | -7/Zion | Build established: Scavenger-Mutant 4424 | -7/Zion | Found Prototype Processor 4424 | -7/Zion | Identified Exp. Terrain Scan Processor 4428 | -7/Zion | Found Prototype Processor 4428 | -7/Zion | Identified Spectral Analyzer 4432 | -7/Zion | Found Prototype Hackware 4435 | -7/Zion | Found Prototype Processor 4435 | -7/Zion | Identified Exp. Melee Analysis Suite 4440 | -7/Zion | Identified Hacking Drone Bay 4495 | -7/Zion | Found CR-A16's Pointy Stick 4738 | -7/Zion | Found Prototype Processor 4738 | -7/Zion | Identified Exp. Core Analyzer 4797 | -7/Zion | Build established: Skirmisher 4985 | -7/Zion | Identified exit to Proximity Caves 4993 | -7/Zion | Entered Proximity Caves 4993 | -6/Proximity Caves | Accompanied by 4 allies 5098 | -6/Proximity Caves | Learned 4 Factory zone layouts 5366 | -6/Proximity Caves | Build established: Scavenger-Mutant 5472 | -6/Proximity Caves | Discovered new exit (range 6) 5476 | -6/Proximity Caves | Identified exit to Factory 5477 | -6/Proximity Caves | Entered Factory 5477 | -6/Factory | Evolved 2 slots: Propulsion x1, Utility x1 5478 | -6/Factory | Identified exit to Lower Caves 5479 | -6/Factory | Identified exit to Extension 5481 | -6/Factory | Loaded intel: 4 garrison access locations 5499 | -6/Factory | Identified Exp. Hacking Suite 5807 | -6/Factory | Discovered exit to Extension (range 15) 5822 | -6/Factory | Entered Extension 5866 | -6/Extension | Rescued a captive Derelict 6288 | -6/Extension | Lost 3 parts (1n2w) 6318 | -6/Extension | Rescued A7 6631 | -6/Extension | Spotted B-75 Beast 6636 | -6/Extension | Build established: Commander-Skirmisher 6644 | -6/Extension | Allies destroyed B-75 Beast 6646 | -6/Extension | Spotted B-75 Beast 6662 | -6/Extension | Allies destroyed B-75 Beast 6743 | -6/Extension | Rescued a captive Derelict 6744 | -6/Extension | Rescued a captive Derelict 6846 | -6/Extension | Rescued a captive Derelict 6847 | -6/Extension | Rescued a captive Derelict 6960 | -6/Extension | Build established: Scavenger-Mutant 7031 | -6/Extension | Discovered new exit (range 10) 7032 | -6/Extension | Discovered new exit (range 6) 7043 | -6/Extension | Identified exit to Cetus 7045 | -6/Extension | Identified exit to Factory 7054 | -6/Extension | Entered Cetus 7054 | -6/Cetus | Accompanied by 11 allies (A7) 7059 | -6/Cetus | Acquired a Cetus Manufacturing Module code from A7 7073 | -6/Cetus | Spotted Cetus Guard 7073 | -6/Cetus | Spotted Cetus Guard 7076 | -6/Cetus | Spotted Cetus Guard 7077 | -6/Cetus | Spotted Cetus Guard 7079 | -6/Cetus | Allies destroyed Cetus Guard 7080 | -6/Cetus | Allies destroyed Cetus Guard 7089 | -6/Cetus | Allies destroyed Cetus Guard 7089 | -6/Cetus | Allies destroyed Cetus Guard 7165 | -6/Cetus | Escorted A7 to Cetus Mainframe 7178 | -6/Cetus | Discovered new exit (range 15) 7215 | -6/Cetus | Started Cetus Manufacturing Module 7240 | -6/Cetus | Manufactured an Enhanced Grunt 7254 | -6/Cetus | Spotted Cetus Guard 7254 | -6/Cetus | Spotted Cetus Guard 7256 | -6/Cetus | Allies destroyed Cetus Guard 7257 | -6/Cetus | Allies destroyed Cetus Guard 7257 | -6/Cetus | Spotted Cetus Guard 7257 | -6/Cetus | Spotted Cetus Guard 7264 | -6/Cetus | Allies destroyed Cetus Guard 7265 | -6/Cetus | Manufactured an Enhanced Grunt 7273 | -6/Cetus | Destroyed Cetus Guard 7277 | -6/Cetus | Discovered exit to Factory (range 16) 7285 | -6/Cetus | Met Revision 17 7290 | -6/Cetus | Manufactured an Enhanced Grunt 7292 | -6/Cetus | Cetus Manufacturing Module disabled 7450 | -6/Cetus | Identified exit to Archives 7452 | -6/Cetus | Entered Archives 7452 | -6/Archives | Accompanied by 7 allies (A7) 7457 | -6/Archives | Received a hacking code to weaken MAIN.C 7511 | -6/Archives | Discovered exit to Factory (range 16) 7653 | -6/Archives | Discovered new exit (range 14) 7697 | -6/Archives | Identified exit to Hub_04(d) 7703 | -6/Archives | Entered Hub_04(d) 7703 | -6/Hub_04(d) | Accompanied by 6 allies 7758 | -6/Hub_04(d) | Build established: Scavenger-Gunner 7840 | -6/Hub_04(d) | Discovered exit to Factory (range 7) 7903 | -6/Hub_04(d) | Network Hub disabled 7904 | -6/Hub_04(d) | Core integrity fell below 50% 7906 | -6/Hub_04(d) | Entered Factory 7906 | -5/Factory | Accompanied by 1 ally 7906 | -5/Factory | Evolved 2 slots: Utility x1, Weapon x1 7924 | -5/Factory | Garrison activated, responded to threat 8027 | -5/Factory | Found Prototype Device 8027 | -5/Factory | Identified Exp. Thermal Shield 8234 | -5/Factory | Identified exit to Upper Caves 8252 | -5/Factory | Garrison activated, responded to threat 8373 | -5/Factory | Repaired Com. Wheel 8382 | -5/Factory | Entered Upper Caves 8588 | -5/Upper Caves | Learned Factory emergency access door positions 8944 | -5/Upper Caves | Discovered new exit (range 5) 8952 | -5/Upper Caves | Identified exit to Upper Caves 8953 | -5/Upper Caves | Entered another Upper Caves area 9336 | -5/Upper Caves | Learned Factory trap positions 9361 | -5/Upper Caves | Learned Factory terminal intel 9525 | -5/Upper Caves | Discovered new exit (range 5) 9530 | -5/Upper Caves | Identified exit to Warlord 9531 | -5/Upper Caves | Entered Warlord 9576 | -5/Warlord | System corruption cleaned by Quarantine Array 9823 | -5/Warlord | Found Prototype Device 9823 | -5/Warlord | Identified Minesniffer Drone Bay 9866 | -5/Warlord | Learned Armory fabricator intel 9866 | -5/Warlord | Learned Research terminal intel 9866 | -5/Warlord | Learned Research fabricator intel 9866 | -5/Warlord | Learned Research garrison access intel 9866 | -5/Warlord | Learned 4 Testing zone layouts 9866 | -5/Warlord | Learned 4 Command zone layouts 9866 | -5/Warlord | Learned location of Quarantine (-3) 10171 | -5/Warlord | Visited the Vortex Lab 10186 | -5/Warlord | Warlord's base attacked by MAIN.C 10186 | -5/Warlord | Met EX-DEC 10194 | -5/Warlord | Found Prototype Launcher 10194 | -5/Warlord | Identified Vortex Catalyst Activator 10197 | -5/Warlord | Found Prototype Energy Gun 10197 | -5/Warlord | Identified Vortex Rail 10204 | -5/Warlord | Found Vortex Rail 10213 | -5/Warlord | Found Prototype Energy Cannon 10311 | -5/Warlord | Met Warlord 10346 | -5/Warlord | Found Prototype Processor 10346 | -5/Warlord | Identified Exp. Targeting Computer 10363 | -5/Warlord | Found Prototype Device 10363 | -5/Warlord | Identified System Purifier 10441 | -5/Warlord | Found Prototype Ballistic Cannon 10441 | -5/Warlord | Identified Hvy. Autocannon 10536 | -5/Warlord | Warlord forces counterattacked 10566 | -5/Warlord | Opened side exit 10675 | -5/Warlord | Discovered new exit (range 8) 10683 | -5/Warlord | Identified exit to Proximity Caves 10684 | -5/Warlord | Entered Proximity Caves 10926 | -4/Proximity Caves | Build established: Scavenger-Mutant 11145 | -4/Proximity Caves | Spotted B-86 Titan 11192 | -4/Proximity Caves | Destroyed B-86 Titan 11216 | -4/Proximity Caves | Lost 3 parts (1n1u1w) 11303 | -4/Proximity Caves | Discovered new exit (range 6) 11310 | -4/Proximity Caves | Identified exit to Factory 11312 | -4/Proximity Caves | Entered Factory 11312 | -4/Factory | Evolved 2 slots: Power x1, Utility x1 11313 | -4/Factory | Identified exit to Research 11314 | -4/Factory | Loaded intel: 106 trap records 11316 | -4/Factory | Loaded intel: 26 terminal locations 11518 | -4/Factory | Spotted B-86 Titan 11605 | -4/Factory | Crushed by falling debris 11696 | -4/Factory | Lost 6 parts (1p1n1u3w) 12032 | -4/Factory | System corruption reached 10% 12075 | -4/Factory | Build established: Scavenger-Skirmisher 12077 | -4/Factory | Lost 5 parts (2p1n1u1w) 12162 | -4/Factory | Lost 5 parts (1p1n3w) 12258 | -4/Factory | Found Launcher Loader 12428 | -4/Factory | Lost 3 parts (1p1u1w) 12577 | -4/Factory | Identified exit to Upper Caves 12815 | -4/Factory | Core integrity fell below 50% 12879 | -4/Factory | Lost 4 parts (1p1u2w) 12948 | -4/Factory | Build established: Mutant 12970 | -4/Factory | Cargo convoy interrupted 12970 | -4/Factory | Spotted Executioner 12981 | -4/Factory | Core integrity fell below 20% 12997 | -4/Factory | Discovered exit to Research (range 13) 13001 | -4/Factory | Destroyed by H-71 Marshal with Heavy Mass Driver Last Messages --------------- 12976_ Dropped Imp. Heat Sink. 12976_ K-01 Serf collects debris. 12977_ H-77 Assassin misfires. 12978_ Penetrated by Slug. 12978_ Slug penetrates Wall. 12979_ P-70 Sage resets H-77 Assassin, system corruption cleaned. 12980_ Slug penetrates Wall. 12980_ Penetrated by Slug. 12981_ Lrg. Storage Unit destroyed. 12981_ Gravmag Array destroyed. 12982_ Adv. Signal Interpreter destroyed. 12982_ Penetrated by Slug. 12985_ Imp. System Guard destroyed. 12985_ P-70 Sage resets P-70 Sage, system corruption cleaned. 12985_ Penetrated by Slug. 12985_ Exp. Hacking Suite destroyed. 12985_ Slug penetrates Wall. 12990_ System corrupted: Heat flow error (+241). 12997_ EXIT=FOUND: RESEARCH 13001_ Slug penetrates Wall. Map ----- +----------------------------------------------------+ | ????????????????????+?^?????????# #? | | ??????????????????????????????### ## | | ??????????????????##########+## | | ???????????????# T" | | ???????????????# " | | ???????????????# | | ???????????????# ####+####### | | ??????????????????????????????###### | | ???????????????????????????####"#### | | ???????????????????????????# | | ???????????????????????????# | | ???????????????????????????# | | ???????????????????????????# | | ???????????????????????????# | | ???????????????????????????# | | ???????????????????????????# | | ?????##????????????????????# | | ?????# ???????????????????# | | ?????# ???????????????????# | | ?????#